Cogmind - Beta 13 @@@ ROGUE MODE // 2024.04.18 @ 14:33:57 Player: Conlarando Result: Destroyed by G-67 Veteran with Plasma Rifle Performance ------------- Evolutions (6) 3000 Regions Visited (10) 2000 Robots Destroyed (77) 385 Value Destroyed (1274) 1274 Prototype IDs (31) 620 Alien Tech Used (0) 0 Bonus (300) 300 TOTAL SCORE: 7579 Bonus ------- Aligned with FarCom 300 Cogmind --------- Core Integrity 0/1150 Matter 295/300 Energy 100/100 System Corruption 19% Temperature Cool (13) Movement Flying (40) Location -4/Upper Caves Parts ------- > --- POWER (3) -------- (None) > --- PROPULSION (6) --- Impulse Thruster > --- UTILITY (8) ------ Advanced Signal Interpreter Hacking Suite Improved Hacking Suite > --- WEAPON (2) ------- Spear > --- INVENTORY (5) ---- Neutrino Core Transmission Jammer Advanced Reaction Control System Hardened Medium Armor Plating HERF Cannon Peak State ------------ > --- POWER ------------ Micro Fission Core Micro Fission Core Antimatter Reactor > --- PROPULSION ------- Cooled VTOL Module Cooled VTOL Module Cooled VTOL Module Cooled VTOL Module Nuclear Pulse Array > --- UTILITY ---------- Advanced Cooling System Medium Storage Unit Advanced Weight Redist. System ECM Suite Phase Shifter Hacking Suite Hacking Suite System Shield > --- WEAPON ----------- Spear > --- INVENTORY -------- VTOL Module VTOL Module Field Propulsion Drive Advanced Signal Interpreter Advanced Terrain Scanner Transmission Jammer Hacking Suite Missile Launcher [Rating: 83] Favorites ----------- Power Light Ion Engine Engine Light Ion Engine Power Core Micro Fission Core Reactor Antimatter Reactor Propulsion Light Treads Treads Light Treads Wheel Wheel Flight Unit VTOL Module Utility Hacking Suite Device Advanced Weight Redist. System Storage Large Storage Unit Processor Advanced Signal Interpreter Hackware Hacking Suite Protection Light Armor Plating Weapon Assault Rifle Energy Gun EM Pulse Gun Ballistic Gun Assault Rifle Ballistic Cannon Light Cannon Launcher Missile Launcher Impact Weapon Heavy Hammer Piercing Weapon Spear Build | -11 -10 -10 -10 -9 -8 -7 -6 -5 -4 -4 ------- Run | Yrd Mat Min Exi Min Mat Fac Fac Fac Fac Upp Slots Evolved 12 | . . . . . 4 2 2 2 2 . Power 2 | . . . . . . . 1 1 . . Propulsion 4 | . . . . . 1 1 1 1 . . Utility 6 | . . . . . 3 1 . . 2 . Weapon . | . . . . . . . . . . . Parts Attached 150 | 6 18 4 . 2 17 44 19 17 10 13 Power 25 | 1 2 . . . 3 4 7 5 2 1 Engine 17 | 1 2 . . . 2 3 7 1 1 . Core 7 | . . . . . 1 1 . 4 . 1 Reactor 1 | . . . . . . . . . 1 . Propulsion 45 | 2 5 . . . 2 15 6 7 4 4 Treads 9 | 2 5 . . . 2 . . . . . Leg . | . . . . . . . . . . . Wheel 1 | . . . . . . . . . . 1 Hover . | . . . . . . . . . . . Flight 35 | . . . . . . 15 6 7 4 3 Utility 43 | 1 3 2 . 1 7 11 4 4 4 6 Device 18 | . . . . . 3 6 1 3 3 2 Storage 6 | 1 1 1 . . 1 1 1 . . . Processor 4 | . 1 1 . . . . 1 . . 1 Hackware 9 | . . . . . . 3 1 1 1 3 Protection 6 | . 1 . . 1 3 1 . . . . Artifact . | . . . . . . . . . . . Weapon 37 | 2 8 2 . 1 5 14 2 1 . 2 Energy Gun 6 | . 2 1 . . 1 2 . . . . Energy Cannon . | . . . . . . . . . . . Ballistic Gun 17 | 2 6 . . 1 3 5 . . . . Ballistic Cannon 2 | . . 1 . . 1 . . . . . Launcher 6 | . . . . . . 3 1 1 . 1 Special Weapon . | . . . . . . . . . . . Impact Weapon 3 | . . . . . . 3 . . . . Slashing Weapon . | . . . . . . . . . . . Piercing Weapon 3 | . . . . . . 1 1 . . 1 Special Melee Weapon . | . . . . . . . . . . . Unidentified Prototypes 7 | . 1 . . . . 5 . . 1 . Parts Lost 36 | . 1 . . . 4 4 6 . 5 16 Power 7 | . . . . . 1 1 2 . 3 . Propulsion 13 | . . . . . 1 2 3 . . 7 Utility 12 | . . . . . 1 . 1 . 2 8 Weapon 4 | . 1 . . . 1 1 . . . 1 Highest Loss Streak 11 | . 1 . . . 2 3 2 . 5 11 To Critical Strikes . | . . . . . . . . . . . Average Slot Usage (%) 91 | . 97 100 100 100 94 95 85 91 90 24 Engine 9 | . 13 14 14 14 8 6 11 8 4 . Core 1 | . . . . . . . . 7 5 . Treads 14 | . 27 28 28 28 26 . . . . . Flight 13 | . . . . . . 29 29 32 27 4 Device 7 | . . . . . 9 15 8 9 20 3 Storage 10 | . 14 14 14 14 15 7 6 5 5 1 Processor 2 | . 1 . 14 3 . . 5 . . 2 Hackware 8 | . . . . . . 22 16 18 14 7 Protection 5 | . 11 14 . 10 15 . . . . . Energy Gun 2 | . . 7 14 4 4 . . . . . Ballistic Gun 7 | . 26 12 . 9 5 3 . . . . Ballistic Cannon 3 | . . 7 14 14 8 . . . . . Piercing Weapon 1 | . . . . . . . 5 5 5 3 Naked Turns . | . . . . . . . . . . . Heaviest Build 85 | 12 31 51 48 51 85 61 29 29 43 21 Greatest Support 60 | 40 40 40 40 40 60 27 32 41 42 20 Greatest Overweight (x) 3 | . 1 1 1 1 1 3 1 . 1 3 Average Overweight (x) . | . . . 1 1 . . . . . . Largest Inventory Capacity 20 | 8 15 20 20 20 20 20 10 10 10 10 Average Capacity 13 | 7 14 16 20 20 20 8 9 10 10 6 Most Carried 20 | 4 15 17 18 18 20 20 10 10 10 10 Average Carried 11 | 2 13 15 17 16 16 7 9 9 8 4 Final Capacity 20 | 8 15 20 20 20 20 8 10 10 10 5 Final Carried 20 | 4 15 17 18 17 20 8 9 10 10 5 Class Distribution -------------------- 48% | Mutant 22% | Hacker-Sprinter 9% | Scavenger-Sprinter 8% | Hacker-Scout 4% | Skirmisher 3% | Hacker-Mutant Dominant Class ---------------- Mutant | -10/Materials Mutant | -10/Mines Mutant | -10/Exiles Mutant | -9/Mines Mutant | -8/Materials Hacker-Sprinter | -7/Factory Scavenger-Sprinter | -6/Factory Hacker-Scout | -5/Factory Hacker-Sprinter | -4/Factory Hacker-Mutant | -4/Upper Caves Resources | -11 -10 -10 -10 -9 -8 -7 -6 -5 -4 -4 ----------- Run | Yrd Mat Min Exi Min Mat Fac Fac Fac Fac Upp Matter Collected 2368 | 244 500 79 . 97 322 455 274 32 242 123 Remotely . | . . . . . . . . . . . Salvage Created 2612 | . 582 134 . 85 302 455 374 32 473 175 Parts 161 | . 46 11 . 11 18 16 37 . 18 4 Haulers Intercepted 6 | . 2 . . . . 3 . . 1 . Recyclers Shooed 4 | . 1 . . 1 . . 1 . 1 . Parts Field Recycled . | . . . . . . . . . . . Retrieved Matter . | . . . . . . . . . . . Parts Self-Destructed 6 | . . . . . . . . . . 6 Prevented . | . . . . . . . . . . . Kills | -11 -10 -10 -10 -9 -8 -7 -6 -5 -4 -4 ------- Run | Yrd Mat Min Exi Min Mat Fac Fac Fac Fac Upp Combat Hostiles Destroyed 34 | . 13 5 . 5 5 4 2 . . . Melee 2 | . . . . . . 1 1 . . . Guns 26 | . 13 3 . 4 3 3 . . . . Cannons 3 | . . . . 1 2 . . . . . AOE 3 | . . 2 . . . . 1 . . . Classes Destroyed 13 | . 6 . . 1 1 3 1 . . 1 Worker 11 | . . . . 1 . 5 4 . 1 . Builder 8 | . . . . . . 4 4 . . . Tunneler 2 | . . . . . . 1 1 . . . Hauler 6 | . 2 . . . . 3 . . 1 . Recycler 5 | . 1 . . . 1 . 1 . 2 . Operator 6 | . 1 . . . 1 1 1 . 2 . Watcher 5 | . 2 . . . . . 2 1 . . Swarmer 20 | . 9 3 . 5 . 3 . . . . Grunt 10 | . 4 2 . . 4 . . . . . Duelist 1 | . . . . . 1 . . . . . Hunter 2 | . . . . . . . 2 . . . Programmer 1 | . . . . . . 1 . . . . Decomposer 2 | . . . . . . . . . . 2 Packrat 1 | . . . . . . . . . . 1 Samaritan 1 | . . . . . . . . . . 1 Best Kill Streak 5 | . 5 3 . 2 2 4 5 1 2 . Combat Bots Only 3 | . 3 3 . 2 2 3 2 . . . Max Kills in Single Turn 2 | . 1 2 . 1 1 1 1 1 1 1 Gunslinging . | . . . . . . . . . . . Exploded 2 | . . 2 . . . . 1 . . . Melee 1 | . . . . . . 1 1 . . . Uniques/NPCs Destroyed . | . . . . . . . . . . . Combat | -11 -10 -10 -10 -9 -8 -7 -6 -5 -4 -4 -------- Run | Yrd Mat Min Exi Min Mat Fac Fac Fac Fac Upp Hostile Shots Fired 465 | . 40 11 . 23 33 52 101 2 74 129 Missed 203 | . 14 2 . 4 6 24 61 1 41 50 Damage Taken 4698 | . 280 132 . 196 502 690 557 22 592 1727 Core 1871 | . 67 52 . 39 72 287 196 . 162 996 Absorbed by Shields . | . . . . . . . . . . . Redirected to Shielding 25 | . . . . . 25 . . . . . Regen/Repaired (Parts) 269 | . 269 . . . . . . . . . Core Remaining (%) 76 | 100 . . . 36 86 59 76 100 . . Volleys Fired 135 | . 56 6 . 9 31 26 6 . . 1 Largest 2 | . 2 2 . 2 2 1 1 . . 1 Hottest 96 | . 96 75 . 75 91 20 36 . . 36 Shots Fired 231 | . 111 12 . 18 57 26 6 . . 1 Gun 186 | . 111 10 . 9 30 26 . . . . Cannon 38 | . . 2 . 9 27 . . . . . Launcher 7 | . . . . . . . 6 . . 1 Special . | . . . . . . . . . . . Kinetic 204 | . 107 10 . 16 45 26 . . . . Thermal 14 | . 2 . . . 12 . . . . . Explosive 7 | . . . . . . . 6 . . 1 Electromagnetic 6 | . 2 2 . 2 . . . . . . Robot Hit Streak 9 | . 9 3 . 3 6 6 4 . . 2 Robot Miss Streak 5 | . 5 2 . 4 3 4 1 . . . Penetration Max . | . . . . . . . . . . . Secondary Targets 3 | . 2 1 . . . . . . . . Max Gunslinging Chain 1 | . 1 1 . . . . . . . . Shots Hit Robots 185 | . 60 6 . 8 33 36 20 2 15 5 Core Hits 93 | . 25 5 . 6 14 11 21 1 7 3 Critical Kills 1 | . . . . 1 . . . . . . Critical Parts Destroyed 2 | . . . . . . 2 . . . . Critical Strikes 12 | . . . . 1 1 2 3 2 3 . Burn 1 | . . . . . 1 . . . . . Destroy 1 | . . . . 1 . . . . . . Smash 2 | . . . . . . 2 . . . . Impale 8 | . . . . . . . 3 2 3 . Melee Attacks 197 | . . . . . . 46 78 13 55 5 Impact 45 | . . . . . . 45 . . . . Slashing . | . . . . . . . . . . . Piercing 152 | . . . . . . 1 78 13 55 5 Sneak Attacks 32 | . . . . . . 13 9 1 5 4 Combat Hostiles . | . . . . . . . . . . . Follow-up Attacks . | . . . . . . . . . . . Damage Inflicted 6198 | . 813 161 . 155 536 1754 1445 130 822 382 Guns 1460 | . 813 61 . 69 332 185 . . . . Cannons 308 | . . 18 . 86 204 . . . . . Explosions 799 | . . 82 . . . . 602 . . 115 Melee 3631 | . . . . . . 1569 843 130 822 267 Ramming . | . . . . . . . . . . . Kinetic 1509 | . 768 53 . 133 370 185 . . . . Thermal 280 | . 32 82 . . 166 . . . . . Explosive 717 | . . . . . . . 602 . . 115 Electromagnetic 61 | . 13 26 . 22 . . . . . . Impact 1498 | . . . . . . 1498 . . . . Slashing . | . . . . . . . . . . . Piercing 2133 | . . . . . . 71 843 130 822 267 Highest Corruption 19 | . . . . . 2 . . . 6 19 Average Corruption 13 | . . . . . 1 . . . 5 17 Corruption Purged . | . . . . . . . . . . . Corruption Blocked . | . . . . . . . . . . . Effects 23 | . . . . . . . . . 4 19 Message Errors 2 | . . . . . . . . . 1 1 Matter Fused 7 | . . . . . . . . . 1 6 Heat Flow Errors 5 | . . . . . . . . . 1 4 Parts Rejected 1 | . . . . . . . . . 1 . Data Loss (minor) 2 | . . . . . . . . . . 2 Data Loss (major) 1 | . . . . . . . . . . 1 Misdirections 5 | . . . . . . . . . . 5 Overload Shots . | . . . . . . . . . . . Overflow Damage 1123 | . . . . . 1 823 192 . 49 58 Projectiles 1 | . . . . . 1 . . . . . Explosions 17 | . . . . . . . 17 . . . Melee 1105 | . . . . . . 823 175 . 49 58 Knockbacks 11 | . . . . 1 5 5 . . . . Impact 5 | . . . . . . 5 . . . . Kinetic 6 | . . . . 1 5 . . . . . Secondary . | . . . . . . . . . . . Self-Inflicted Damage 89 | . . 50 . 39 . . . . . . Shots 2 | . . 1 . 1 . . . . . . Rammed . | . . . . . . . . . . . Targets Rammed . | . . . . . . . . . . . Kicked . | . . . . . . . . . . . Crushed . | . . . . . . . . . . . Highest Temperature 284 | . 96 78 . 60 148 186 57 284 53 215 Average Temperature 48 | . 39 41 . 12 48 86 15 75 29 95 Received Heat Transfer 685 | . 36 18 . . 207 9 63 . 39 313 Effects 1 | . . . . . . . . 1 . . Interference 1 | . . . . . . . . 1 . . Siege Activations . | . . . . . . . . . . . Robots Corrupted . | . . . . . . . . . . . Combat Hostiles . | . . . . . . . . . . . Parts Fried 12 | . . . . . . 12 . . . . Impact Corruptions 17 | . . . . . . 17 . . . . Robots Melted . | . . . . . . . . . . . Combat Hostiles . | . . . . . . . . . . . Parts Melted 1 | . . . . . 1 . . . . . Heat Transferred 618 | . 74 100 . . 444 . . . . . Parts Sabotaged . | . . . . . . . . . . . Parts Stolen . | . . . . . . . . . . . Parts Stripped . | . . . . . . . . . . . Power Chain Reactions 2 | . . 1 . 1 . . . . . . Alert | -11 -10 -10 -10 -9 -8 -7 -6 -5 -4 -4 ------- Run | Yrd Mat Min Exi Min Mat Fac Fac Fac Fac Upp Peak Influence 414 | . 189 124 . 149 130 130 414 215 148 . Initial 161 | . . 1 . . 57 2 52 161 32 . Average 73 | . 48 46 . 73 51 47 145 131 74 . Maximum Alert Level 2 | . . . . . . . 2 1 . . Low Security (%) 91 | 100 100 100 . 100 100 100 75 44 100 . Level 1 8 | . . . . . . . 24 55 . . Level 2 . | . . . . . . . . . . . Level 3 . | . . . . . . . . . . . Level 4 . | . . . . . . . . . . . Level 5 . | . . . . . . . . . . . High Security . | . . . . . . . . . . . Max Security . | . . . . . . . . . . . Squads Dispatched 20 | . 2 . . . 1 3 10 2 2 . Investigation 7 | . 1 . . . . . 4 1 1 . Extermination 3 | . . . . . . 1 2 . . . Reinforcement 9 | . 1 . . . 1 2 4 1 . . Assault . | . . . . . . . . . . . Garrison 1 | . . . . . . . . . 1 . Intercept . | . . . . . . . . . . . Searches Triggered 1 | . . . . . . . 1 . . . Construction Impeded 3 | . . . . . . 1 2 . . . Haulers Reinforced 1 | . . . . . . . . 1 . . Active Scanning Responses . | . . . . . . . . . . . Cargo Convoy Interrupts . | . . . . . . . . . . . Stealth | -11 -10 -10 -10 -9 -8 -7 -6 -5 -4 -4 --------- Run | Yrd Mat Min Exi Min Mat Fac Fac Fac Fac Upp Distress Signals 4 | . 2 . . . . . 1 1 . . Communications Jammed . | . . . . . . . . . . . Distress Signals . | . . . . . . . . . . . Times Spotted 154 | . 27 5 . 7 10 19 38 4 31 13 Peak Tracking Total 12 | . 4 3 . 3 3 5 12 2 10 5 Tactical Retreats 32 | . . . . 2 2 5 11 . 7 5 Traps | -11 -10 -10 -10 -9 -8 -7 -6 -5 -4 -4 ------- Run | Yrd Mat Min Exi Min Mat Fac Fac Fac Fac Upp Traps Triggered 10 | . 3 . . . 2 3 2 . . . Indirectly . | . . . . . . . . . . . Trap Hack Attempts . | . . . . . . . . . . . Triggered . | . . . . . . . . . . . Disarmed . | . . . . . . . . . . . Reprogrammed . | . . . . . . . . . . . Reused . | . . . . . . . . . . . Traps Extracted . | . . . . . . . . . . . Installed . | . . . . . . . . . . . Triggered . | . . . . . . . . . . . Machines | -11 -10 -10 -10 -9 -8 -7 -6 -5 -4 -4 ---------- Run | Yrd Mat Min Exi Min Mat Fac Fac Fac Fac Upp Machines Disabled 2 | . . . . . . . 2 . . . Max in Single Turn 1 | . . . . . . . 1 . . . Garrison Access 5 | . . . . . . 2 1 1 1 . Machines Repaired . | . . . . . . . . . . . Machines Dismantled . | . . . . . . . . . . . Machines Sabotaged . | . . . . . . . . . . . Overloaded Fab Kills . | . . . . . . . . . . . Hacking | -11 -10 -10 -10 -9 -8 -7 -6 -5 -4 -4 --------- Run | Yrd Mat Min Exi Min Mat Fac Fac Fac Fac Upp Machines Accessed 36 | . 6 . 1 1 2 7 9 6 4 . Terminals 19 | . 3 . . 1 2 4 4 3 2 . Fabricators 5 | . . . . . . . 3 1 1 . Repair Stations 1 | . 1 . . . . . . . . . Recycling Units 4 | . 2 . . . . 1 1 . . . Scanalyzers 1 | . . . . . . . . 1 . . Garrison Access 5 | . . . . . . 2 1 1 1 . Total Hacks 86 | . 21 . 1 1 3 10 24 14 12 . Successful 49 | . 11 . 1 . 1 5 15 10 6 . Failed 37 | . 10 . . 1 2 5 9 4 6 . Catastrophic 9 | . 2 . . 1 1 2 . 1 2 . Database Lockouts . | . . . . . . . . . . . Manual 29 | . 9 . 1 1 3 3 6 3 3 . Terminals 47 | . 11 . . 1 3 5 11 9 7 . Fabricators 12 | . . . . . . . 8 2 2 . Repair Stations 8 | . 8 . . . . . . . . . Recycling Units 8 | . 2 . . . . 2 4 . . . Scanalyzers 2 | . . . . . . . . 2 . . Garrison Access 8 | . . . . . . 3 1 1 3 . Terminal Hacks 18 | . 1 . 1 . 1 2 5 5 3 . Part Schematic 1 | . . . . . . . 1 . . . Level Access Points 2 | . . . . . . . . 1 1 . Branch Access Points 1 | . . . . . . . . . 1 . Fabricator Index 1 | . . . . . . . 1 . . . Alert Level 1 | . . . . . . . . 1 . . Unreport Threat 1 | . . . . . . . . 1 . . Recall Investigation 1 | . . . . . . . 1 . . . Hauler Manifests 3 | . 1 . . . . 1 1 . . . Registered Components 1 | . . . . . . 1 . . . . Zone Layout 5 | . . . . . 1 . 1 2 1 . Derelict Proto ID Bank 1 | . . . 1 . . . . . . . Fabricator Hacks 10 | . . . . . . . 6 2 2 . Load Schematic 5 | . . . . . . . 3 1 1 . Build 5 | . . . . . . . 3 1 1 . Repair Station Hacks 8 | . 8 . . . . . . . . . Scan Component 4 | . 4 . . . . . . . . . Repair 4 | . 4 . . . . . . . . . Recycling Unit Hacks 6 | . 2 . . . . 1 3 . . . Report Inventory 3 | . 2 . . . . . 1 . . . Retrieve Matter 1 | . . . . . . . 1 . . . Retrieve Components 2 | . . . . . . 1 1 . . . Scanalyzer 2 | . . . . . . . . 2 . . Insert Component 1 | . . . . . . . . 1 . . Analyze 1 | . . . . . . . . 1 . . Garrison Access Hacks 5 | . . . . . . 2 1 1 1 . Seal Access 5 | . . . . . . 2 1 1 1 . Unauthorized Hacks . | . . . . . . . . . . . Terminals . | . . . . . . . . . . . Fabricators . | . . . . . . . . . . . Repair Stations . | . . . . . . . . . . . Recycling Units . | . . . . . . . . . . . Scanalyzers . | . . . . . . . . . . . Garrison Access . | . . . . . . . . . . . Data Cores Recovered 3 | . . . . . . . 1 . 2 . Used 1 | . . . . . . . 1 . . . Hacking Detections 25 | . 4 . . 1 . 5 7 5 3 . Full Trace Events 8 | . 2 . . . . . 4 1 1 . Feedback Events 1 | . . . . . . . 1 . . . Hackware Fried 1 | . . . . . . . 1 . . . Feedback Blocked . | . . . . . . . . . . . Robot Schematics Acquired . | . . . . . . . . . . . Robots Built . | . . . . . . . . . . . Authchips . | . . . . . . . . . . . Time . | . . . . . . . . . . . Total Robot Build Rating . | . . . . . . . . . . . Part Schematics Acquired 2 | . . . . . . . 1 1 . . Parts Built 5 | . . . . . . . 3 1 1 . Authchips . | . . . . . . . . . . . Time 513 | . . . . . . . 335 134 44 . Total Part Build Rating 20 | . . . . . . . 12 4 4 . Parts Repaired 4 | . 4 . . . . . . . . . Time 104 | . 104 . . . . . . . . . Parts Recycled . | . . . . . . . . . . . Recycled Matter . | . . . . . . . . . . . Retrieved Matter . | . . . . . . . . . . . Retrieved Components 17 | . . . . . . 7 10 . . . Parts Scanalyzed 1 | . . . . . . . . 1 . . Part Schematics Acquired 1 | . . . . . . . . 1 . . Parts Damaged . | . . . . . . . . . . . Bothacking | -11 -10 -10 -10 -9 -8 -7 -6 -5 -4 -4 ------------ Run | Yrd Mat Min Exi Min Mat Fac Fac Fac Fac Upp Used RIF Installer . | . . . . . . . . . . . Robots Hacked . | . . . . . . . . . . . Non-combat . | . . . . . . . . . . . Combat . | . . . . . . . . . . . Robot Hacks Applied . | . . . . . . . . . . . Relay Couplers Released . | . . . . . . . . . . . Fabnet Peak Effective % . | . . . . . . . . . . . Robots Rewired . | . . . . . . . . . . . Allies Hacked . | . . . . . . . . . . . Hacks Repelled . | . . . . . . . . . . . Allies | -11 -10 -10 -10 -9 -8 -7 -6 -5 -4 -4 -------- Run | Yrd Mat Min Exi Min Mat Fac Fac Fac Fac Upp Total Allies . | . . . . . . . . . . . Largest Group . | . . . . . . . . . . . Highest-Rated Group . | . . . . . . . . . . . Highest-Rated Ally . | . . . . . . . . . . . Total Orders 2 | . . . . . 2 . . . . . EXPLORE 1 | . . . . . 1 . . . . . RETURN 1 | . . . . . 1 . . . . . Ally Attacks . | . . . . . . . . . . . Total Damage . | . . . . . . . . . . . Kills . | . . . . . . . . . . . Allies Corrupted . | . . . . . . . . . . . Allies Melted . | . . . . . . . . . . . Intel | -11 -10 -10 -10 -9 -8 -7 -6 -5 -4 -4 ------- Run | Yrd Mat Min Exi Min Mat Fac Fac Fac Fac Upp Robot Analysis Total . | . . . . . . . . . . . Derelict Logs Recovered 2 | . . 1 . . . . . . . 1 Drone Launches 2 | . . . . . 2 . . . . . Drone Recoveries 2 | . . . . . 2 . . . . . Exploration | -11 -10 -10 -10 -9 -8 -7 -6 -5 -4 -4 ------------- Run | Yrd Mat Min Exi Min Mat Fac Fac Fac Fac Upp Turns Passed 8167 | 74 1664 658 561 231 1050 1163 1080 680 666 340 Spaces Moved 6973 | 38 790 345 234 84 328 1560 1673 804 577 540 Core 357 | 2 . . . . . . . . . 355 Treads 1817 | 36 790 345 234 84 328 . . . . . Legs . | . . . . . . . . . . . Wheels . | . . . . . . . . . . . Hover . | . . . . . . . . . . . Flight 4799 | . . . . . . 1560 1673 804 577 185 Fastest Speed 11 | 50 160 160 240 240 160 26 23 11 21 26 Average Speed 70 | 154 160 180 240 240 225 29 25 22 23 53 Slowest Speed 271 | 160 240 240 240 240 240 271 99 25 94 205 Overloaded Moves 23 | . . . . . . . 15 7 . 1 Propulsion Burnouts . | . . . . . . . . . . . Robots Hopped 3 | . . . . . . . 1 2 . . Cave-ins Triggered 1 | . . . . . . . . . . 1 Exploration Rate (%) 36 | 3 84 72 42 20 26 16 30 16 12 76 Regions Visited 10 Branch Regions 4 Pre-discovered Areas . | . . . . . . . . . . . Known Exits Taken 5 | . . 1 1 . . . 1 1 1 . Unknown Exits Taken 5 | 1 1 . . 1 1 1 . . . . Scrap Searched 4 | . . . . . . . . . . 4 Spaces Dug 110 | . . . . . . 18 49 11 32 . Terrain Destroyed 144 | . . 3 . 4 . 18 65 11 32 11 Melee 110 | . . . . . . 18 49 11 32 . Projectile . | . . . . . . . . . . . AOE 34 | . . 3 . 4 . . 16 . . 11 Terrain Rammed . | . . . . . . . . . . . Walls Destroyed . | . . . . . . . . . . . Machines Disabled . | . . . . . . . . . . . Actions | -11 -10 -10 -10 -9 -8 -7 -6 -5 -4 -4 --------- Run | Yrd Mat Min Exi Min Mat Fac Fac Fac Fac Upp Total 9654 | 51 1073 369 234 96 582 2162 2203 1277 1024 583 Wait 2068 | 4 187 12 . . 193 447 407 428 373 17 Move 6957 | 37 789 344 233 83 327 1559 1670 799 576 540 Hop 3 | . . . . . . . 1 2 . . Pick Up 58 | 4 14 2 1 1 8 7 10 4 4 3 Fast Attach 66 | 6 14 . . . 5 15 9 10 5 2 Attach 46 | . . . . 1 8 14 6 3 3 11 Detach 19 | . 1 . . . 3 5 3 3 1 3 Swap 39 | . 5 4 . 1 4 15 4 4 2 . Drop 66 | . 7 1 . 1 3 28 9 11 5 1 Fire 135 | . 56 6 . 9 31 26 6 . . 1 Melee 197 | . . . . . . 46 78 13 55 5 Ram . | . . . . . . . . . . . Kick . | . . . . . . . . . . . Crush . | . . . . . . . . . . . Escape Stasis . | . . . . . . . . . . . Rewire . | . . . . . . . . . . . Trap . | . . . . . . . . . . . Miscellaneous . | . . . . . . . . . . . Route ------- -11/Scrapyard -10/Materials (discovered 5 exits: [*Mat x3] / [*Min x2]) -10/Mines (discovered 2 exits: [*Mat] / *Exi) -10/Exiles -9/Mines -8/Materials -7/Factory -6/Factory -5/Factory (discovered 4 exits: *Fac x4) -4/Factory (discovered 7 exits: Res x4 / *Upp x2 / Arm) -4/Upper Caves History --------- Turn | Location | Event 31 | -11/Scrapyard | Discovered new exit (range 15) 75 | -11/Scrapyard | Entered Materials 184 | -10/Materials | Discovered new exit (range 6) 302 | -10/Materials | Build established: Mutant 392 | -10/Materials | Discovered new exit (range 15) 668 | -10/Materials | Discovered new exit (range 14) 861 | -10/Materials | Repaired Lgt. Treads 889 | -10/Materials | Repaired Assault Rifle 916 | -10/Materials | Repaired Lgt. Treads 944 | -10/Materials | Repaired Assault Rifle 1016 | -10/Materials | Discovered new exit (range 9) 1666 | -10/Materials | Discovered new exit (range 9) 1739 | -10/Materials | Entered Mines 1773 | -10/Mines | Learned Materials terminal intel 1851 | -10/Mines | Found a damaged Exp. Sensor Array with a note attached 2196 | -10/Mines | Discovered new exit (range 13) 2384 | -10/Mines | Deemed a non-threat by the Exiles lab entrance 2386 | -10/Mines | Discovered new exit (range 5) 2395 | -10/Mines | Identified exit to Exiles 2397 | -10/Mines | Entered Exiles 2455 | -10/Exiles | Met 8R-AWN 2498 | -10/Exiles | Met EX-HEX 2580 | -10/Exiles | Met EX-BIN 2606 | -10/Exiles | Aligned with FarCom system 2609 | -10/Exiles | Given EX-Vault access code 2669 | -10/Exiles | Opened EX-Vault 2688 | -10/Exiles | Found Supersonic Drone Bay 2742 | -10/Exiles | Warned to stay clear of 0b10 Research branches 2926 | -10/Exiles | Discovered new exit (range 14) 2955 | -10/Exiles | Identified exit to Mines 2958 | -10/Exiles | Left Exiles lab with Supersonic Drone Bay 2958 | -10/Exiles | Entered Mines 3085 | -9/Mines | Discovered new exit (range 11) 3086 | -9/Mines | Core integrity fell below 50% 3189 | -9/Mines | Entered Materials 3189 | -8/Materials | Evolved 4 slots: Propulsion x1, Utility x3 3190 | -8/Materials | Loaded intel: 12 terminal locations 4036 | -8/Materials | Build established: Skirmisher 4192 | -8/Materials | Discovered new exit (range 13) 4239 | -8/Materials | Entered Factory 4239 | -7/Factory | Evolved 2 slots: Propulsion x1, Utility x1 4358 | -7/Factory | Lost 3 parts (1p2n) 4681 | -7/Factory | Build established: Hacker-Sprinter 4924 | -7/Factory | Discovered new exit (range 5) 5402 | -7/Factory | Entered another Factory area 5402 | -6/Factory | Evolved 2 slots: Power x1, Propulsion x1 5460 | -6/Factory | Discovered new exit (range 5) 5462 | -6/Factory | Identified exit to Factory 5728 | -6/Factory | Build established: Scavenger-Sprinter 5812 | -6/Factory | Hacking Suite fried by hacking feedback 5869 | -6/Factory | Fabricated Cld. VTOL Module? 6168 | -6/Factory | Fabricated Cld. VTOL Module? 6299 | -6/Factory | Fabricated Cld. VTOL Module (x1) 6452 | -6/Factory | Search patrols dispatched 6482 | -6/Factory | Entered another Factory area 6482 | -5/Factory | Evolved 2 slots: Power x1, Propulsion x1 6610 | -5/Factory | Build established: Hacker-Scout 6653 | -5/Factory | Fabricated Cld. VTOL Module? 7100 | -5/Factory | Identified exit to Factory 7162 | -5/Factory | Entered another Factory area 7162 | -4/Factory | Evolved 2 slots: Utility x2 7178 | -4/Factory | Identified exit to Upper Caves 7178 | -4/Factory | Identified exit to Armory 7257 | -4/Factory | Fabricated Cld. VTOL Module? 7290 | -4/Factory | Build established: Hacker-Sprinter 7606 | -4/Factory | Garrison activated, responded to threat 7681 | -4/Factory | Identified exit to Research 7828 | -4/Factory | Entered Upper Caves 7851 | -4/Upper Caves | Attracted the attention of an 0b10 checkpoint 7853 | -4/Upper Caves | System corruption reached 10% 7883 | -4/Upper Caves | Lost 10 parts (3p3n4u) 7905 | -4/Upper Caves | Crushed by falling debris 7906 | -4/Upper Caves | Core integrity fell below 50% 7920 | -4/Upper Caves | Core integrity fell below 20% 7957 | -4/Upper Caves | Lost 11 parts (4n6u1w) 8168 | -4/Upper Caves | Destroyed by G-67 Veteran with Plasma Rifle Last Messages --------------- 08113_ RO-0YP(S) destroyed. 08117_ Acquired Neutrino Core. 08119_ Searching scrap... 08119_ Found Hrd. Medium Armor Plating. 08119_ Found Mak. Trap Scanner. 08119_ Found 39 Matter. 08120_ Acquired 20 matter. 08124_ Acquired Hrd. Medium Armor Plating. 08130_ System corrupted: Component data lost. 08131_ Searching scrap... 08131_ Found Imp. System Shield. 08131_ Found 26 Matter. 08131_ Found 13 Matter. 08135_ Dropped Wheel. 08143_ Searching scrap... 08143_ Found Mak. Spear. 08143_ Found 16 Matter. 08147_ Acquired derelict log, extracted data. Data stored: Testing entrances (x1). 08167_ System corrupted: Matter fused (-5). Map ----- +----------------------------------------------------+ | ?????????????????????????????????????????????????? | | ?????????????????????????????????????????????????? | | ?????????????????????????????????????????????????? | | ?????????????????????????????????????????????????? | | ?????????????????????????????????????????????????? | | ?????????????????????????????????????????????????? | | ?????????????????????????????????????????????????? | | ?????????????????????????????????????????????????? | | ?????????????????????????????????????????????????? | | ?????????????????????????????????????????????????? | | ???????????????????????? g ??????????????????? ? | | ??????????????????????##gb ?????????????????? | | ??????????????????????? ???????????????????# | | ??????????????????????? ???????????????????? | | ??????????????????????? ? #???????????????? | | ??????????????????????? g ##?????????????? | | ???????????????????????# #????????####??# | | ???????????????????????# ????????# #??# | | ???????????????????????# #???????# #??# | | ??????????????????????## ##?????# ##?# | | ?????????????????????## ? ##?????# ##? | | ????????????????????## #??# ##????# #? | | ????????????????##### #???# ##????# ## | | ????????????????# ##???# ####??# # | | ????????????????# ##???# #??# | | ????????????????????# @ ##??# #### | | ????????????????????## ##?# ## | | ?????????????????????## ## ### | | ??????????????????????###?## | | ???????????????????????????# ### | | ???????????????????????????# ##?#### | | ???????????????????????????# ##?????##### | | ???????????????????????????####### ##??????????### | | ?????????????????????????????????###?????????????# | | ?????????????????????????????????????????????????? | | ?????????????????????????????????????????????????? | | ?????????????????????????????????????????????????? | | ?????????????????????????????????????????????????? | | ?????????????????????????????????????????????????? | | ?????????????????????????????????????????????????? | | ?????????????????????????????????????????????????? | | ?????????????????????????????????????????????????? | | ?????????????????????????????????????????????????? | | ?????????????????????????????????????????????????? | | ?????????????????????????????????????????????????? | | ?????????????????????????????????????????????????? | | ?????????????????????????????????????????????????? | | ?????????????????????????????????????????????????? | | ?????????????????????????????????????????????????? | | ?????????????????????????????????????????????????? | +----------------------------------------------------+ Best States ------------- Heat Dissipation 74 Energy Generation 36 Energy Capacity 400 Matter Stores 300 Matter Capacity 300 Sight Range 16 Robot Scan Range 15 Terrain Scan Range 20 Terrain Scan Density 10 ECM Strength 1 Additional Mass Support 9 Armor Coverage 225 Core Shielding 20 Utility Shielding 33 Phase Shifting 5 Evasion (%) 70 Recoil Reduction 3 Offensive Hacking 30 Defensive Hacking 20 Item Schematics ----------------- Cld. VTOL Module | -6/Factory | Hacked Hacking Suite | -5/Factory | Scanalyzed Robot Schematics ------------------ None Fabricated ------------ Cld. VTOL Module | x1 | -6/Factory Cld. VTOL Module | x1 | -6/Factory Cld. VTOL Module | x1 | -6/Factory Cld. VTOL Module | x1 | -5/Factory Cld. VTOL Module | x1 | -4/Factory Alien Tech Used ----------------- None Achievements -------------- Oops Party Time Whoosh! Challenges ------------ None Game ------ Seed DecoyGatlingScrap Manual? 0 Play Time 01:51:33 Cumulative 10.9 hours Start 2024.04.18 @ 12:37:15 End 2024.04.18 @ 14:33:57 Sessions 1 Manual Loads 0 Difficulty Rogue Special Mode None Game No. 20 Rogue 20 Adventurer 0 Explorer 0 Win Type - Total 0 Types 0/0/0/0/0/0/0/0/0 Lore% 5 Gallery% 17 Achievement% 16 Wizard Run 0 Options --------- Layout 1 ASCII 0 Keyboard 0 Movement Mouse Keybinds 0 Fullscreen 1 Font 24/Terminus Map View 50x35 Zoom Use 0% Tactical HUD 1 Map Filters NONE Filters NONE Steam 1 RUN: 15252892-5658-48e6-964f-221531274e7e